[Event "*** Titled Tuesday Blitz"]
[Site "Chess.com"]
[Date "2020.05.12"]
[Round "7"]
[White "kingmonkey2006"]
[Black "Future2700"]
[Result "0-1"]
[WhiteElo "2648"]
[BlackElo "2432"]
[TimeControl "180+1"]
[EndTime "11:17:10 PDT"]
[Termination "Future2700 won by checkmate"]

1. e3 {[%clk 0:02:10.4]} 1... e5 {[%clk 0:02:58.3]} 2. Ne2 {[%clk 0:02:10.4]}
2... d5 {[%clk 0:02:57.9]} 3. d4 {[%clk 0:02:11.2]} 3... e4 {[%clk 0:02:54.4]}
4. c4 {[%clk 0:02:11]} 4... c6 {[%clk 0:02:54.9]} 5. Nd2 {[%clk 0:02:09.8]} 5...
Nd7 {[%clk 0:02:52.2]} 6. Nc3 {[%clk 0:02:10.4]} 6... Ndf6 {[%clk 0:02:52.4]} 7.
Be2 {[%clk 0:02:06.7]} 7... Bd6 {[%clk 0:02:49.3]} 8. c5 {[%clk 0:02:04.3]} 8...
Bb8 {[%clk 0:02:48.9]} 9. b4 {[%clk 0:02:05.2]} 9... a6 {[%clk 0:02:49]} 10. a4
{[%clk 0:02:04.9]} 10... Ne7 {[%clk 0:02:46.7]} 11. Rb1 {[%clk 0:02:05.1]} 11...
Ng6 {[%clk 0:02:42.6]} 12. b5 {[%clk 0:02:05.4]} 12... axb5 {[%clk 0:02:40]} 13.
axb5 {[%clk 0:02:05.5]} 13... Nh4 {[%clk 0:02:38.4]} 14. Kf1 {[%clk 0:02:03.5]}
14... h5 {[%clk 0:02:36.6]} 15. bxc6 {[%clk 0:01:56.6]} 15... bxc6 {[%clk
0:02:37.5]} 16. Rb6 {[%clk 0:01:57]} 16... Bc7 {[%clk 0:02:20.3]} 17. Rxc6
{[%clk 0:01:16.7]} 17... Bb7 {[%clk 0:02:19.3]} 18. Bb5 {[%clk 0:01:13.4]} 18...
O-O {[%clk 0:02:16.7]} 19. g3 {[%clk 0:01:10]} 19... Nf5 {[%clk 0:02:08.3]} 20.
Rxf6 {[%clk 0:01:09.5]} 20... Qxf6 {[%clk 0:02:07.2]} 21. Kg2 {[%clk 0:01:07.2]}
21... h4 {[%clk 0:01:50]} 22. Qg4 {[%clk 0:00:59.9]} 22... Qe6 {[%clk
0:01:34.3]} 23. Qe2 {[%clk 0:00:30.6]} 23... h3+ {[%clk 0:01:31.2]} 24. Kf1
{[%clk 0:00:27.8]} 24... Ra1 {[%clk 0:01:31.2]} 25. Nb3 {[%clk 0:00:28.1]} 25...
Ra7 {[%clk 0:01:17]} 26. Ke1 {[%clk 0:00:24.6]} 26... Bc6 {[%clk 0:00:55.3]} 27.
Kd2 {[%clk 0:00:16.1]} 27... Rb8 {[%clk 0:00:54.1]} 28. Kc2 {[%clk 0:00:14.2]}
28... Bxb5 {[%clk 0:00:51.9]} 29. Nxb5 {[%clk 0:00:15.1]} 29... Qa6 {[%clk
0:00:51.9]} 30. Nc3 {[%clk 0:00:11.7]} 30... Qd3+ {[%clk 0:00:49.7]} 31. Qxd3
{[%clk 0:00:11.4]} 31... exd3+ {[%clk 0:00:50.6]} 32. Kxd3 {[%clk 0:00:05.2]}
32... Rxb3 {[%clk 0:00:49.5]} 33. Kc2 {[%clk 0:00:05.2]} 33... Rb8 {[%clk
0:00:45.6]} 34. Nxd5 {[%clk 0:00:05.8]} 34... Bd8 {[%clk 0:00:39.1]} 35. g4
{[%clk 0:00:06]} 35... Nh4 {[%clk 0:00:27.1]} 36. Nc3 {[%clk 0:00:06.3]} 36...
Nf3 {[%clk 0:00:26.1]} 37. Kd3 {[%clk 0:00:06.2]} 37... Ba5 {[%clk 0:00:21.3]}
38. Bd2 {[%clk 0:00:05.2]} 38... Nxd2 {[%clk 0:00:20.5]} 39. Kxd2 {[%clk
0:00:06.1]} 39... Rb3 {[%clk 0:00:20.5]} 40. Rc1 {[%clk 0:00:05.9]} 40... Rxc3
{[%clk 0:00:19]} 41. Rxc3 {[%clk 0:00:06.8]} 41... Kf8 {[%clk 0:00:18.5]} 42.
Kd3 {[%clk 0:00:07.4]} 42... Bxc3 {[%clk 0:00:19]} 43. Kxc3 {[%clk 0:00:08.3]}
43... Ke7 {[%clk 0:00:19.9]} 44. e4 {[%clk 0:00:08.6]} 44... Ra2 {[%clk
0:00:19.5]} 45. d5 {[%clk 0:00:09]} 45... Rxf2 {[%clk 0:00:19.8]} 46. d6+ {[%clk
0:00:09.7]} 46... Kd7 {[%clk 0:00:19.8]} 47. Kd4 {[%clk 0:00:10.6]} 47... Rxh2
{[%clk 0:00:19.9]} 48. Kd5 {[%clk 0:00:10.9]} 48... Rd2+ {[%clk 0:00:19.6]} 49.
Ke5 {[%clk 0:00:11.4]} 49... h2 {[%clk 0:00:19.8]} 50. Kf4 {[%clk 0:00:12.3]}
50... h1=Q {[%clk 0:00:20.1]} 51. Ke3 {[%clk 0:00:13.2]} 51... Qe1+ {[%clk
0:00:20]} 52. Kf4 {[%clk 0:00:13.3]} 52... Rf2+ {[%clk 0:00:20.1]} 53. Ke5
{[%clk 0:00:14.2]} 53... Qc3+ {[%clk 0:00:20.2]} 54. Kd5 {[%clk 0:00:14.6]}
54... Rd2# {[%clk 0:00:20.4]} 0-1

[Event "*** Titled Tuesday Blitz"]
[Site "Chess.com"]
[Date "2020.05.12"]
[Round "7"]
[White "Maksimus1998"]
[Black "Vesper2018"]
[Result "0-1"]
[WhiteElo "2449"]
[BlackElo "2253"]
[TimeControl "180+1"]
[EndTime "11:17:11 PDT"]
[Termination "Vesper2018 won by checkmate"]

1. c4 {[%clk 0:03:00.9]} 1... e5 {[%clk 0:02:58.8]} 2. Nc3 {[%clk 0:03:01.2]}
2... d6 {[%clk 0:02:57.8]} 3. Nf3 {[%clk 0:03:00.8]} 3... f5 {[%clk 0:02:55.1]}
4. g3 {[%clk 0:03:01.4]} 4... g6 {[%clk 0:02:48.3]} 5. d4 {[%clk 0:02:55.4]}
5... e4 {[%clk 0:02:47.6]} 6. Ng5 {[%clk 0:02:50.9]} 6... Bg7 {[%clk 0:02:30.6]}
7. h4 {[%clk 0:02:50.5]} 7... Nc6 {[%clk 0:02:22.4]} 8. e3 {[%clk 0:02:50.5]}
8... Nf6 {[%clk 0:02:22]} 9. Be2 {[%clk 0:02:50.5]} 9... O-O {[%clk 0:02:21]}
10. Nh3 {[%clk 0:02:50.2]} 10... Bh6 {[%clk 0:02:07.5]} 11. b3 {[%clk 0:02:44]}
11... Ne7 {[%clk 0:02:03]} 12. d5 {[%clk 0:02:41.9]} 12... c6 {[%clk 0:02:00.6]}
13. dxc6 {[%clk 0:02:40.4]} 13... bxc6 {[%clk 0:01:55.8]} 14. Bb2 {[%clk
0:02:41.3]} 14... Be6 {[%clk 0:01:53.6]} 15. Nf4 {[%clk 0:02:37.3]} 15... Bf7
{[%clk 0:01:41.6]} 16. Ba3 {[%clk 0:02:23.8]} 16... Nc8 {[%clk 0:01:40.8]} 17.
Qd2 {[%clk 0:02:20.2]} 17... Bg7 {[%clk 0:01:35.5]} 18. Rd1 {[%clk 0:02:19.1]}
18... Qa5 {[%clk 0:01:31.6]} 19. Bb2 {[%clk 0:01:46.7]} 19... Qc7 {[%clk
0:01:31.6]} 20. h5 {[%clk 0:01:40.8]} 20... Rd8 {[%clk 0:01:18]} 21. hxg6 {[%clk
0:01:40.1]} 21... hxg6 {[%clk 0:01:18.3]} 22. Kf1 {[%clk 0:01:31.8]} 22... Ne7
{[%clk 0:01:13.3]} 23. Kg2 {[%clk 0:01:31.1]} 23... a6 {[%clk 0:01:00]} 24. Qc1
{[%clk 0:01:07.4]} 24... d5 {[%clk 0:00:50.2]} 25. cxd5 {[%clk 0:01:07.1]} 25...
cxd5 {[%clk 0:00:38.9]} 26. Qa1 {[%clk 0:01:01.9]} 26... Rd6 {[%clk 0:00:24.5]}
27. Na4 {[%clk 0:00:51.9]} 27... Nc6 {[%clk 0:00:24.4]} 28. Rc1 {[%clk
0:00:48.7]} 28... Qe7 {[%clk 0:00:20.4]} 29. Nb6 {[%clk 0:00:44.8]} 29... Rad8
{[%clk 0:00:19.6]} 30. Bxa6 {[%clk 0:00:31.1]} 30... Qa7 {[%clk 0:00:18.4]} 31.
Nc8 {[%clk 0:00:29]} 31... Qxa6 {[%clk 0:00:18.4]} 32. Nxd6 {[%clk 0:00:29.2]}
32... Rxd6 {[%clk 0:00:18.7]} 33. Rc5 {[%clk 0:00:25.9]} 33... Nb4 {[%clk
0:00:16.7]} 34. a3 {[%clk 0:00:18.9]} 34... Nd3 {[%clk 0:00:16.1]} 35. Nxd3
{[%clk 0:00:19]} 35... Qxd3 {[%clk 0:00:16.1]} 36. Rc8+ {[%clk 0:00:19]} 36...
Be8 {[%clk 0:00:13]} 37. Bxf6 {[%clk 0:00:18.5]} 37... Bxf6 {[%clk 0:00:13.1]}
38. Rxe8+ {[%clk 0:00:15.5]} 38... Kf7 {[%clk 0:00:13.5]} 39. Re5 {[%clk
0:00:14.2]} 39... Qe2 {[%clk 0:00:11.5]} 40. Qc3 {[%clk 0:00:11.5]} 40... Qf3+
{[%clk 0:00:11.1]} 41. Kg1 {[%clk 0:00:11]} 41... Qd1+ {[%clk 0:00:09.8]} 42.
Kh2 {[%clk 0:00:11.4]} 42... Qh5+ {[%clk 0:00:09.3]} 43. Kg2 {[%clk 0:00:11.8]}
43... Qf3+ {[%clk 0:00:09.5]} 44. Kh2 {[%clk 0:00:12.1]} 44... Rd7 {[%clk
0:00:08.8]} 45. Qc6 {[%clk 0:00:08.4]} 45... Qxf2+ {[%clk 0:00:06.4]} 46. Kh3
{[%clk 0:00:08.8]} 46... Bxe5 {[%clk 0:00:03.8]} 47. Qxd7+ {[%clk 0:00:08.8]}
47... Kf6 {[%clk 0:00:04]} 48. Rc1 {[%clk 0:00:08.3]} 48... Qxg3# {[%clk
0:00:03.5]} 0-1

[Event "*** Titled Tuesday Blitz"]
[Site "Chess.com"]
[Date "2020.05.12"]
[Round "7"]
[White "1stSecond"]
[Black "Alexander_Zubov"]
[Result "1-0"]
[WhiteElo "2709"]
[BlackElo "2835"]
[TimeControl "180+1"]
[EndTime "11:17:12 PDT"]
[Termination "1stSecond won on time"]

1. Nf3 {[%clk 0:03:00.9]} 1... Nf6 {[%clk 0:02:57.6]} 2. g3 {[%clk 0:03:01]}
2... d5 {[%clk 0:02:56.9]} 3. Bg2 {[%clk 0:03:01.6]} 3... c6 {[%clk 0:02:56.9]}
4. O-O {[%clk 0:03:02.1]} 4... Bg4 {[%clk 0:02:56.7]} 5. h3 {[%clk 0:02:57.8]}
5... Bh5 {[%clk 0:02:55.7]} 6. d3 {[%clk 0:02:56.4]} 6... e6 {[%clk 0:02:54.4]}
7. Nbd2 {[%clk 0:02:54.6]} 7... Be7 {[%clk 0:02:53.4]} 8. e4 {[%clk 0:02:53.5]}
8... O-O {[%clk 0:02:52.6]} 9. Qe2 {[%clk 0:02:47.2]} 9... a5 {[%clk 0:02:42.2]}
10. a4 {[%clk 0:02:46.3]} 10... Qb6 {[%clk 0:02:33.4]} 11. Rd1 {[%clk
0:02:17.7]} 11... Na6 {[%clk 0:02:22.5]} 12. Nf1 {[%clk 0:02:12.8]} 12... dxe4
{[%clk 0:02:09.6]} 13. dxe4 {[%clk 0:02:12.7]} 13... Nc5 {[%clk 0:02:09.3]} 14.
e5 {[%clk 0:02:05.7]} 14... Nd5 {[%clk 0:02:08.1]} 15. g4 {[%clk 0:01:37.4]}
15... Bg6 {[%clk 0:02:05.5]} 16. Ng3 {[%clk 0:01:37.9]} 16... Nb4 {[%clk
0:01:44.9]} 17. Nd4 {[%clk 0:01:37.6]} 17... Rfd8 {[%clk 0:01:25.6]} 18. Be3
{[%clk 0:01:37.1]} 18... Qa6 {[%clk 0:01:23]} 19. Qxa6 {[%clk 0:01:09.9]} 19...
Ncxa6 {[%clk 0:01:20.6]} 20. Be4 {[%clk 0:00:57.1]} 20... Nc5 {[%clk 0:01:13.9]}
21. Bxg6 {[%clk 0:00:57]} 21... hxg6 {[%clk 0:01:14.2]} 22. f4 {[%clk
0:00:37.8]} 22... Rd5 {[%clk 0:00:55.7]} 23. Nge2 {[%clk 0:00:31.8]} 23... Rad8
{[%clk 0:00:50.1]} 24. Nc3 {[%clk 0:00:24]} 24... R5d7 {[%clk 0:00:46.9]} 25.
Kf1 {[%clk 0:00:20.3]} 25... f6 {[%clk 0:00:33.4]} 26. Ke2 {[%clk 0:00:18.2]}
26... Kf7 {[%clk 0:00:29.1]} 27. Rd2 {[%clk 0:00:16.1]} 27... Rh8 {[%clk
0:00:19.9]} 28. Rh1 {[%clk 0:00:16.6]} 28... Rdd8 {[%clk 0:00:19.8]} 29. Bf2
{[%clk 0:00:14.7]} 29... Rh7 {[%clk 0:00:17.7]} 30. h4 {[%clk 0:00:11.5]} 30...
fxe5 {[%clk 0:00:16.4]} 31. fxe5 {[%clk 0:00:11.7]} 31... Rhh8 {[%clk
0:00:13.4]} 32. Bg3 {[%clk 0:00:04.2]} 32... Ke8 {[%clk 0:00:12.1]} 33. g5
{[%clk 0:00:03.9]} 33... Rd7 {[%clk 0:00:10.2]} 34. Rhd1 {[%clk 0:00:04.2]}
34... Rf8 {[%clk 0:00:09.6]} 35. Ke3 {[%clk 0:00:02.9]} 35... Rf7 {[%clk
0:00:08.2]} 36. Nde2 {[%clk 0:00:02.4]} 36... Rxd2 {[%clk 0:00:07.1]} 37. Rxd2
{[%clk 0:00:03.3]} 37... Bd8 {[%clk 0:00:08]} 38. Nf4 {[%clk 0:00:02]} 38... Bb6
{[%clk 0:00:08]} 39. Ke2 {[%clk 0:00:02.3]} 39... Rf5 {[%clk 0:00:08.7]} 40.
Nxg6 {[%clk 0:00:02.4]} 40... Kf7 {[%clk 0:00:07.8]} 41. Nh8+ {[%clk 0:00:01.7]}
41... Kg8 {[%clk 0:00:07.4]} 42. Ng6 {[%clk 0:00:02.4]} 42... Kh7 {[%clk
0:00:07.7]} 43. Ne7 {[%clk 0:00:02.6]} 43... Rf7 {[%clk 0:00:06.7]} 44. g6+
{[%clk 0:00:02.8]} 1-0

[Event "*** Titled Tuesday Blitz"]
[Site "Chess.com"]
[Date "2020.05.12"]
[Round "7"]
[White "MiroVlasenko"]
[Black "Igor_Lysyj"]
[Result "0-1"]
[WhiteElo "2611"]
[BlackElo "2793"]
[TimeControl "180+1"]
[EndTime "11:17:12 PDT"]
[Termination "Igor_Lysyj won by resignation"]

1. e4 {[%clk 0:03:00.9]} 1... e5 {[%clk 0:02:59.1]} 2. Nc3 {[%clk 0:03:00.2]}
2... Nf6 {[%clk 0:02:57.1]} 3. Bc4 {[%clk 0:02:59.4]} 3... Bc5 {[%clk
0:02:56.4]} 4. f4 {[%clk 0:02:55.6]} 4... d5 {[%clk 0:02:52]} 5. exd5 {[%clk
0:02:55.6]} 5... e4 {[%clk 0:02:46.8]} 6. d4 {[%clk 0:02:53.9]} 6... exd3 {[%clk
0:02:45.1]} 7. Qxd3 {[%clk 0:02:53.3]} 7... O-O {[%clk 0:02:44.4]} 8. Bd2 {[%clk
0:02:41.1]} 8... a6 {[%clk 0:02:31.4]} 9. O-O-O {[%clk 0:02:36.1]} 9... b5
{[%clk 0:02:30.4]} 10. Bb3 {[%clk 0:02:36.2]} 10... Bg4 {[%clk 0:02:23.6]} 11.
Nf3 {[%clk 0:02:33.4]} 11... Nbd7 {[%clk 0:02:23]} 12. h3 {[%clk 0:02:28.6]}
12... Bxf3 {[%clk 0:02:22.1]} 13. Qxf3 {[%clk 0:02:28.6]} 13... Qb8 {[%clk
0:02:19.1]} 14. g4 {[%clk 0:02:20.3]} 14... a5 {[%clk 0:02:15.4]} 15. g5 {[%clk
0:02:19.9]} 15... Ne8 {[%clk 0:02:14.7]} 16. d6 {[%clk 0:02:19]} 16... Nxd6
{[%clk 0:02:09.7]} 17. Bd5 {[%clk 0:02:08.6]} 17... Ra6 {[%clk 0:02:03.6]} 18.
Ne4 {[%clk 0:02:08]} 18... Nxe4 {[%clk 0:02:01]} 19. Bxe4 {[%clk 0:02:08.9]}
19... Rd6 {[%clk 0:01:56.4]} 20. Bc3 {[%clk 0:02:06.1]} 20... Re8 {[%clk
0:01:47.3]} 21. Rde1 {[%clk 0:01:55.1]} 21... b4 {[%clk 0:01:41.1]} 22. Be5
{[%clk 0:01:54.8]} 22... Rde6 {[%clk 0:01:10.8]} 23. Bd5 {[%clk 0:01:46.1]}
23... R6e7 {[%clk 0:01:07.6]} 24. Ref1 {[%clk 0:01:36.9]} 24... Qb6 {[%clk
0:01:02.4]} 25. h4 {[%clk 0:01:31.4]} 25... Bd4 {[%clk 0:00:56.8]} 26. h5 {[%clk
0:01:04.2]} 26... Bxe5 {[%clk 0:00:48.2]} 27. fxe5 {[%clk 0:01:04.1]} 27... Nxe5
{[%clk 0:00:47.8]} 28. Qg3 {[%clk 0:01:04.5]} 28... c6 {[%clk 0:00:46.6]} 29.
Bb3 {[%clk 0:00:56.2]} 29... c5 {[%clk 0:00:31]} 30. g6 {[%clk 0:00:54]} 30...
c4 {[%clk 0:00:23.3]} 31. gxf7+ {[%clk 0:00:51.5]} 31... Rxf7 {[%clk 0:00:23.3]}
32. Rxf7 {[%clk 0:00:50.5]} 32... Kxf7 {[%clk 0:00:23.2]} 33. Qf4+ {[%clk
0:00:46.4]} 33... Qf6 {[%clk 0:00:20.6]} 34. Bxc4+ {[%clk 0:00:45.9]} 34... Kf8
{[%clk 0:00:20.3]} 35. Qxf6+ {[%clk 0:00:42.7]} 35... gxf6 {[%clk 0:00:20.1]}
36. Be2 {[%clk 0:00:42.6]} 36... Re7 {[%clk 0:00:19]} 37. h6 {[%clk 0:00:41]}
37... Nf7 {[%clk 0:00:18.7]} 38. Bd3 {[%clk 0:00:40.6]} 38... Ng5 {[%clk
0:00:18.2]} 39. Rf1 {[%clk 0:00:39.3]} 39... Kf7 {[%clk 0:00:18.5]} 40. Rf5
{[%clk 0:00:38.4]} 40... Re5 {[%clk 0:00:18.3]} 41. Rf4 {[%clk 0:00:36.7]} 41...
Re1+ {[%clk 0:00:17.4]} 42. Kd2 {[%clk 0:00:36.6]} 42... Re5 {[%clk 0:00:17.1]}
43. c3 {[%clk 0:00:34.9]} 43... bxc3+ {[%clk 0:00:15.7]} 44. Kxc3 {[%clk
0:00:35.3]} 44... Ke6 {[%clk 0:00:15.8]} 45. Rc4 {[%clk 0:00:34.1]} 45... f5
{[%clk 0:00:15.1]} 46. Rc6+ {[%clk 0:00:33.6]} 46... Kf7 {[%clk 0:00:14.5]} 47.
Bc4+ {[%clk 0:00:31.9]} 47... Ke7 {[%clk 0:00:13.6]} 48. Rc7+ {[%clk 0:00:32.1]}
48... Kf6 {[%clk 0:00:13.2]} 49. Rg7 {[%clk 0:00:31.2]} 49... f4 {[%clk
0:00:12.8]} 50. a3 {[%clk 0:00:30.9]} 50... f3 {[%clk 0:00:12.6]} 51. b4 {[%clk
0:00:31.1]} 51... axb4+ {[%clk 0:00:12.2]} 52. axb4 {[%clk 0:00:31.2]} 52... f2
{[%clk 0:00:12.2]} 53. Rg8 {[%clk 0:00:31.6]} 53... Re7 {[%clk 0:00:11]} 54.
Rf8+ {[%clk 0:00:30.8]} 54... Nf7 {[%clk 0:00:11.1]} 55. b5 {[%clk 0:00:31.1]}
55... Rc7 {[%clk 0:00:10.2]} 56. Rxf7+ {[%clk 0:00:27.3]} 56... Rxf7 {[%clk
0:00:09.1]} 57. b6 {[%clk 0:00:27.7]} 57... Rb7 {[%clk 0:00:08.2]} 0-1

[Event "*** Titled Tuesday Blitz"]
[Site "Chess.com"]
[Date "2020.05.12"]
[Round "7"]
[White "martabartel"]
[Black "Glidzhian_Gor"]
[Result "0-1"]
[WhiteElo "2287"]
[BlackElo "2460"]
[TimeControl "180+1"]
[EndTime "11:17:13 PDT"]
[Termination "Glidzhian_Gor won by checkmate"]

1. d4 {[%clk 0:03:00.9]} 1... Nf6 {[%clk 0:02:59.9]} 2. c4 {[%clk 0:03:00.3]}
2... g6 {[%clk 0:03:00.3]} 3. Nf3 {[%clk 0:02:59.6]} 3... Bg7 {[%clk 0:03:00.6]}
4. Nc3 {[%clk 0:02:59.8]} 4... O-O {[%clk 0:03:01.3]} 5. Bg5 {[%clk 0:02:59.7]}
5... d6 {[%clk 0:03:02.1]} 6. e3 {[%clk 0:02:59.9]} 6... c6 {[%clk 0:03:00.5]}
7. Be2 {[%clk 0:02:59.7]} 7... Nbd7 {[%clk 0:03:00.3]} 8. Qc2 {[%clk 0:02:59.4]}
8... a6 {[%clk 0:02:59.8]} 9. O-O {[%clk 0:02:57.7]} 9... b5 {[%clk 0:02:59.9]}
10. b3 {[%clk 0:02:55.4]} 10... Bb7 {[%clk 0:03:00.1]} 11. Rac1 {[%clk 0:02:54]}
11... h6 {[%clk 0:02:58.1]} 12. Bh4 {[%clk 0:02:53.4]} 12... e5 {[%clk 0:02:51]}
13. Rfd1 {[%clk 0:02:49.8]} 13... Qe7 {[%clk 0:02:27.7]} 14. dxe5 {[%clk
0:02:40.6]} 14... dxe5 {[%clk 0:02:21.3]} 15. Nd2 {[%clk 0:02:32.9]} 15... g5
{[%clk 0:01:48.6]} 16. Bg3 {[%clk 0:02:32.1]} 16... b4 {[%clk 0:01:49.1]} 17.
Na4 {[%clk 0:02:20.9]} 17... c5 {[%clk 0:01:45.7]} 18. e4 {[%clk 0:02:10.4]}
18... Bc6 {[%clk 0:01:40]} 19. Nb2 {[%clk 0:02:09.2]} 19... Rfd8 {[%clk
0:01:32.5]} 20. Nd3 {[%clk 0:02:08.6]} 20... Nxe4 {[%clk 0:01:23.8]} 21. Nxe4
{[%clk 0:02:02]} 21... Bxe4 {[%clk 0:01:23.6]} 22. f3 {[%clk 0:02:01]} 22... Bg6
{[%clk 0:01:22.8]} 23. Bf2 {[%clk 0:01:54]} 23... Rac8 {[%clk 0:01:20.4]} 24.
Qd2 {[%clk 0:01:52]} 24... Nf8 {[%clk 0:01:19.5]} 25. Qe1 {[%clk 0:01:49.6]}
25... Ne6 {[%clk 0:01:18.8]} 26. Be3 {[%clk 0:01:44.9]} 26... Nd4 {[%clk
0:01:15.7]} 27. Bxd4 {[%clk 0:01:38.5]} 27... exd4 {[%clk 0:01:16.6]} 28. Qf2
{[%clk 0:01:31.6]} 28... Re8 {[%clk 0:01:16.5]} 29. Bf1 {[%clk 0:01:31.4]} 29...
Qd6 {[%clk 0:01:07.8]} 30. Re1 {[%clk 0:01:28.1]} 30... h5 {[%clk 0:01:05.9]}
31. Rxe8+ {[%clk 0:01:26.3]} 31... Rxe8 {[%clk 0:01:06.8]} 32. Re1 {[%clk
0:01:25.7]} 32... Rxe1 {[%clk 0:01:02.7]} 33. Qxe1 {[%clk 0:01:25.4]} 33... Bf6
{[%clk 0:01:03]} 34. Qg3 {[%clk 0:00:57.3]} 34... Qe7 {[%clk 0:00:50.6]} 35. Qe1
{[%clk 0:00:38.5]} 35... Qc7 {[%clk 0:00:39]} 36. g3 {[%clk 0:00:36.3]} 36...
Kg7 {[%clk 0:00:38]} 37. Kg2 {[%clk 0:00:35.8]} 37... Qc6 {[%clk 0:00:36.9]} 38.
Qe2 {[%clk 0:00:33.3]} 38... g4 {[%clk 0:00:37]} 39. Kf2 {[%clk 0:00:25.3]}
39... gxf3 {[%clk 0:00:31.9]} 40. Qxf3 {[%clk 0:00:24.9]} 40... Qc7 {[%clk
0:00:15]} 41. Be2 {[%clk 0:00:24.7]} 41... Bg5 {[%clk 0:00:13.9]} 42. Qd5 {[%clk
0:00:23.3]} 42... Be3+ {[%clk 0:00:13.7]} 43. Ke1 {[%clk 0:00:23.4]} 43... h4
{[%clk 0:00:13.5]} 44. Ne5 {[%clk 0:00:19.4]} 44... hxg3 {[%clk 0:00:12.6]} 45.
hxg3 {[%clk 0:00:19.6]} 45... Qe7 {[%clk 0:00:11.9]} 46. Kd1 {[%clk 0:00:18.1]}
46... Qg5 {[%clk 0:00:11.3]} 47. Nf3 {[%clk 0:00:15.9]} 47... Qxg3 {[%clk
0:00:10.2]} 48. Qe5+ {[%clk 0:00:15.9]} 48... Qxe5 {[%clk 0:00:10.6]} 49. Nxe5
{[%clk 0:00:16.8]} 49... Be4 {[%clk 0:00:10.5]} 50. Nd7 {[%clk 0:00:16.2]} 50...
d3 {[%clk 0:00:11.1]} 51. Bf1 {[%clk 0:00:16.2]} 51... Bf3+ {[%clk 0:00:11.6]}
52. Ke1 {[%clk 0:00:08.9]} 52... d2# {[%clk 0:00:11.4]} 0-1

[Event "*** Titled Tuesday Blitz"]
[Site "Chess.com"]
[Date "2020.05.12"]
[Round "7"]
[White "Fins0905"]
[Black "etesungam"]
[Result "0-1"]
[WhiteElo "2609"]
[BlackElo "2458"]
[TimeControl "180+1"]
[EndTime "11:17:15 PDT"]
[Termination "etesungam won by resignation"]

1. d4 {[%clk 0:03:00.9]} 1... d5 {[%clk 0:02:59.9]} 2. c4 {[%clk 0:03:00.1]}
2... e6 {[%clk 0:03:00.2]} 3. Nc3 {[%clk 0:02:59.7]} 3... Nf6 {[%clk 0:03:00.5]}
4. Nxd5 {[%clk 0:02:59.6]} 4... exd5 {[%clk 0:02:59.9]} 5. Nf3 {[%clk
0:02:52.1]} 5... dxc4 {[%clk 0:02:57.9]} 6. Bg5 {[%clk 0:02:43.3]} 6... Bb4+
{[%clk 0:02:55.2]} 7. Bd2 {[%clk 0:02:38.4]} 7... Bxd2+ {[%clk 0:02:47.1]} 8.
Qxd2 {[%clk 0:02:39.3]} 8... O-O {[%clk 0:02:46.4]} 9. e3 {[%clk 0:02:38.7]}
9... Be6 {[%clk 0:02:38.2]} 10. Rc1 {[%clk 0:02:33.7]} 10... b5 {[%clk
0:02:32.2]} 11. Ne5 {[%clk 0:02:29.1]} 11... Qd6 {[%clk 0:02:15.2]} 12. Qa5
{[%clk 0:02:24.5]} 12... Qb6 {[%clk 0:02:02.4]} 13. Qa3 {[%clk 0:02:13.1]} 13...
Nc6 {[%clk 0:01:58.4]} 14. Nf3 {[%clk 0:02:06.7]} 14... Qa5+ {[%clk 0:01:52.3]}
15. Qxa5 {[%clk 0:02:06.1]} 15... Nxa5 {[%clk 0:01:53.2]} 16. Be2 {[%clk
0:02:06.2]} 16... c5 {[%clk 0:01:42.6]} 17. dxc5 {[%clk 0:02:01.9]} 17... Nc6
{[%clk 0:01:36]} 18. O-O {[%clk 0:01:46.3]} 18... Rac8 {[%clk 0:01:33.2]} 19.
Nd4 {[%clk 0:01:38.8]} 19... Rfd8 {[%clk 0:01:28.7]} 20. Nxb5 {[%clk 0:01:30.2]}
20... Rb8 {[%clk 0:01:21.2]} 21. Nc7 {[%clk 0:01:26.7]} 21... Rxb2 {[%clk
0:01:14.7]} 22. Nxe6 {[%clk 0:01:26.3]} 22... fxe6 {[%clk 0:01:11.8]} 23. Bxc4
{[%clk 0:01:26.8]} 23... Kf7 {[%clk 0:01:09.5]} 24. h3 {[%clk 0:01:23.3]} 24...
Rdd2 {[%clk 0:01:07.6]} 25. Bb3 {[%clk 0:01:21.7]} 25... Ke7 {[%clk 0:01:01]}
26. Rc4 {[%clk 0:01:10.6]} 26... Nd5 {[%clk 0:00:56]} 27. Rg4 {[%clk 0:01:04.3]}
27... g6 {[%clk 0:00:52.7]} 28. Ra4 {[%clk 0:01:04]} 28... Nxe3 {[%clk
0:00:45.8]} 29. Re1 {[%clk 0:01:04.2]} 29... Nd5 {[%clk 0:00:34.2]} 30. Rae4
{[%clk 0:00:52.4]} 30... Nd8 {[%clk 0:00:31.1]} 31. c6 {[%clk 0:00:50.9]} 31...
Kd6 {[%clk 0:00:30.2]} 32. Rc1 {[%clk 0:00:25]} 32... Nc7 {[%clk 0:00:29.5]} 33.
Rf4 {[%clk 0:00:21.1]} 33... a5 {[%clk 0:00:22.1]} 34. Rf8 {[%clk 0:00:20.5]}
34... Nxc6 {[%clk 0:00:21.5]} 35. Rc8 {[%clk 0:00:20.2]} 35... Rxf2 {[%clk
0:00:18.4]} 36. Ba4 {[%clk 0:00:17]} 36... Rxg2+ {[%clk 0:00:17.2]} 37. Kh1
{[%clk 0:00:17.6]} 37... Rh2+ {[%clk 0:00:17.4]} 38. Kg1 {[%clk 0:00:18.1]}
38... Rbg2+ {[%clk 0:00:17.5]} 39. Kf1 {[%clk 0:00:18.3]} 39... Rh1+ {[%clk
0:00:16.9]} 40. Kxg2 {[%clk 0:00:18.2]} 40... Rxc1 {[%clk 0:00:17.8]} 41. Rh8
{[%clk 0:00:17.6]} 41... h5 {[%clk 0:00:17]} 42. Rg8 {[%clk 0:00:17.3]} 42...
Ne5 {[%clk 0:00:17.2]} 43. Rd8+ {[%clk 0:00:16.4]} 43... Ke7 {[%clk 0:00:17.4]}
44. Rc8 {[%clk 0:00:16.2]} 44... Kf6 {[%clk 0:00:15.8]} 45. Bb3 {[%clk
0:00:14.4]} 45... Rc5 {[%clk 0:00:15.3]} 46. Kf2 {[%clk 0:00:13.2]} 46... Na6
{[%clk 0:00:15.4]} 47. Ra8 {[%clk 0:00:12.8]} 47... Nb4 {[%clk 0:00:15.2]} 48.
Ke3 {[%clk 0:00:13.2]} 48... Nd5+ {[%clk 0:00:15.2]} 49. Kd4 {[%clk 0:00:13.7]}
49... Rc7 {[%clk 0:00:13.3]} 50. Rxa5 {[%clk 0:00:13.6]} 50... Nc6+ {[%clk
0:00:11.7]} 51. Kc5 {[%clk 0:00:11.6]} 51... Nxa5+ {[%clk 0:00:12.6]} 0-1